{"text_format":"3","workbook":"xlsx","n_sheets":1,"sheets":["Costing for 3 Years"],"not_rendered":{"images":1,"defined_names":1},"read":"whole","date_system":"1900"}

{"sheet":"Costing for 3 Years","index":0,"n_rows":48,"n_cols":11,"rows_kept":48,"merged":[[2,0,2,3],[3,0,3,3],[4,1,4,3],[4,4,4,6],[4,7,4,9],[12,0,12,2],[13,1,13,3],[13,4,13,6],[13,7,13,9],[28,2,28,4],[28,5,28,9],[29,2,29,4],[29,5,29,9],[30,2,30,4],[30,5,30,9],[31,2,31,4],[32,0,32,4],[33,0,33,4],[34,0,34,4],[35,0,35,4],[36,0,36,4],[37,1,37,3],[40,0,41,0]]}
[]
[]
["PRICING SHEET FOR THREE (03) YEARS"]
["APPOINTMENT OF A PANEL OF LAW FIRMS TO PROVIDE LEGAL SERVICES FOR A PERIOD OF THREE (03) YEARS - BS/2024/RFB521"]
[null,"Year One(01)",null,null,"Year Two(02)",null,null,"Year Three(03)",null,null,"TOTAL FOR 3 YEARS"]
["Description","Estimate  Quantity/Hours","Unit Price","Years 1               Amount VAT Incl","Estimate  Quantity/Hours","Unit Price","Years 2           Amount VAT Incl","Estimate  Quantity/Hours","Unit Price","Years 3            Amount VAT Incl"]
["A.  CONTRACT VETTING COSTS"]
["Price per Contract vetted up to 30 contracts per annum",30,0,{"$f":"B8*C8","v":0},30,0,{"$f":"E8*F8","v":0},30,0,{"$f":"I8*H8","v":0},{"$f":"D8+G8+J8","v":0}]
["B.  GENERAL LEGAL SERVICES EXCLUDING TRAVEL COSTS"]
["Senior partner/ Team leader ",20,0,{"$f":"B10*C10","v":0},20,0,{"$f":"E10*F10","v":0},20,0,{"$f":"I10*H10","v":0},{"$f":"D10+G10+J10","v":0}]
["Team member/Attorney at law ",120,0,{"$f":"B11*C11","v":0},120,0,{"$f":"E11*F11","v":0},120,0,{"$f":"I11*H11","v":0},{"$f":"D11+G11+J11","v":0}]
["candidate Attorney",120,0,{"$f":"B12*C12","v":0},120,0,{"$f":"E12*F12","v":0},120,0,{"$f":"I12*H12","v":0},{"$f":"D12+G12+J12","v":0}]
["SUB-TOTAL PER ANNUM",null,null,{"$f":"SUM(D8:D12)","v":0},null,null,{"$f":"SUM(G8:G12)","v":0},null,null,{"$f":"SUM(J8:J12)","v":0},{"$f":"SUM(K8:K12)","v":0}]
[null,"Year One(01)",null,null,"Year Two(02)",null,null,"Year Three(03)",null,null,"Totals"]
["Other Items not included in above - BIDDER TO SPECIFY(Disbursements)","Estimate  Quantity/Hours","Unit Price","Years 1               Amount VAT Incl","Estimate  Quantity/Hours","Unit Price","Years 2           Amount VAT Incl","Estimate  Quantity/Hours","Unit Price","Years 3            Amount VAT Incl","Totals for 3 years"]
[1,null,0,{"$f":"B16*C16","v":0},null,0,{"$f":"E16*F16","v":0},null,0,{"$f":"H16*I16","v":0},{"$f":"D16+G16+J16","v":0}]
[2,null,0,{"$f":"B17*C17","v":0},null,0,{"$f":"E17*F17","v":0},null,0,{"$f":"H17*I17","v":0},{"$f":"D17+G17+J17","v":0}]
[3,null,0,0,null,0,0,null,0,0,0]
[4,null,0,0,null,0,0,null,0,0,0]
[5,null,0,0,null,0,0,null,0,0,0]
[6,null,0,0,null,0,0,null,0,0,0]
[7,null,0,0,null,0,0,null,0,0,0]
[8,null,0,0,null,0,0,null,0,0,0]
[9,null,0,0,null,0,0,null,0,0,0]
[10,null,0,0,null,0,0,null,0,0,0]
[11,null,0,0,null,0,0,null,0,0,0]
["OPTIONAL ADDITION TOTAL AMOUNT",null,null,{"$f":"SUM(D16:D26)","v":0},null,null,{"$f":"SUM(G16:G26)","v":0},null,null,{"$f":"SUM(J16:J26)","v":0},{"$f":"SUM(K16:K26)","v":0}]
["Total inclusive of optional additions",null,null,{"$f":"SUM(D13+D27)","v":0},null,null,{"$f":"SUM(G13+G27)","v":0},null,null,{"$f":"SUM(J13+J27)","v":0},{"$f":"SUM(D28+G28+J28)","v":0}]
[null,null,"Total excluding VAT",null,null,{"$f":"K13+K27","v":{"v":0,"d":"R0.00"}}]
[null,null,"VAT if Applicable (If VAT registered)",null,null,{"$f":"F29*0.15","v":{"v":0,"d":"R0.00"}}]
[null,null,"TOTAL BIDDING PRICE INCL VAT",null,null,{"$f":"F29+F30","v":{"v":0,"d":"R0.00"}}]
["Notes:"]
["Pricing must cover all items detailed in the Terms of Reference"]
["RFQ process with panel"]
["Pricing must include Value Added Tax (VAT)"]
["Service provider must complete blocks in yellow. Total values in this spreadsheet are automatically calculated and filled in."]
["Travel expenses to and from the physical engaged office will be calculated from BANKSETA Centurion offices to the physical engaged office in line with SARS rates"]
["Date:"]
["Service Provider Name"]
["Name of Person Signing"]
["Signature"]
[]
[]
[]
[]
[]
[]
["Signature"]